bitfinex/quotes_BTCUSD_20250714
["timestamp","ask_amount","ask_price","bid_price","bid_amount"]
[1752507358756,0.22479434,120040.0,120030.0,0.24909109]
[1752507359478,0.22479434,120040.0,120030.0,0.11837109]
[1752507359693,0.22479434,120040.0,120030.0,0.24909109]
[1752507359914,0.22479434,120040.0,120030.0,0.11837109]
[1752507360408,0.22479434,120040.0,120030.0,0.24909109]
[1752507360617,0.22479434,120040.0,120030.0,0.2335259]
[1752507360834,0.22479434,120040.0,120030.0,0.24909627]
[1752507361313,0.72529771,120040.0,120030.0,0.24905625]
[1752507361743,0.72529771,120040.0,120030.0,0.11837625]
[1752507361968,0.72529771,120040.0,120030.0,0.24905625]
[1752507362214,0.24145509,120040.0,120030.0,0.24905625]
[1752507362679,0.2414544,120040.0,120030.0,0.24905625]
[1752507362900,0.24978488,120040.0,120030.0,0.24905625]
[1752507363125,0.76246503,120040.0,120030.0,0.24905625]
[1752507363340,0.74580483,120040.0,120030.0,0.24905625]
[1752507363822,0.73747456,120040.0,120030.0,0.24905625]
[1752507364922,0.73747456,120040.0,120030.0,0.11837625]
[1752507365609,0.73747456,120040.0,120030.0,0.24905625]
[1752507365797,0.73747456,120040.0,120030.0,0.24705625]
[1752507366083,0.73847456,120040.0,120030.0,0.24705625]
[1752507366308,0.81982167,120040.0,120030.0,0.11637625]
[1752507366529,1.32251118,120040.0,120030.0,0.24705625]
[1752507366751,1.66251118,120040.0,120030.0,0.24705625]
[1752507367191,1.67705203,120040.0,120030.0,0.11637625]
[1752507367658,1.80773203,120040.0,120030.0,0.11637625]
[1752507367921,1.80873203,120040.0,120030.0,0.11637625]
[1752507368590,1.80873203,120040.0,120030.0,0.11638308]
[1752507369045,1.79419118,120040.0,120030.0,0.11638308]
[1752507369290,1.28151103,120040.0,120030.0,0.11638308]
[1752507369990,0.63815088,120040.0,120030.0,0.11638308]
[1752507370230,1.28151103,120040.0,120030.0,0.11638308]
[1752507370660,1.79419118,120040.0,120030.0,0.11638308]
[1752507373375,1.80873203,120040.0,120030.0,0.11638308]
[1752507374456,1.80873203,120040.0,120030.0,0.1008059]
[1752507374678,1.80873203,120040.0,120030.0,0.11637052]
[1752507375998,1.67805203,120040.0,120030.0,0.11637052]
[1752507376236,0.65269173,120040.0,120030.0,0.11637052]
[1752507376471,0.001,120040.0,120030.0,2.88757149]
[1752507376720,0.001,120040.0,120030.0,3.88506292]
[1752507376938,0.002,120070.0,120060.0,0.56208015]
[1752507377164,0.002,120070.0,120060.0,0.06496462]
[1752507377620,0.002,120070.0,120060.0,0.56638501]
[1752507377845,0.002,120070.0,120060.0,0.06495408]
[1752507378942,0.01798824,120070.0,120060.0,0.06638501]
[1752507379162,0.002,120070.0,120060.0,0.14773212]
[1752507379817,0.002,120070.0,120060.0,0.14973212]
[1752507380696,0.002,120070.0,120060.0,0.15173212]
[1752507381142,0.00194776,120070.0,120060.0,0.15173212]
[1752507381384,0.00194776,120070.0,120060.0,0.12813212]
[1752507381602,0.00194776,120070.0,120060.0,0.10233212]
[1752507381819,0.00194776,120070.0,120060.0,0.60233212]
[1752507382038,0.00194776,120070.0,120060.0,0.60090119]
[1752507383133,0.01757615,120070.0,120060.0,0.10090119]
[1752507383359,0.00194776,120070.0,120060.0,0.60033212]
[1752507383584,0.00194776,120070.0,120060.0,0.59690119]
[1752507383820,0.00194776,120070.0,120060.0,0.09790119]
[1752507384053,0.00194776,120070.0,120060.0,0.09890119]
[1752507384274,0.00194776,120070.0,120060.0,0.10033212]
[1752507384526,0.00194776,120070.0,120060.0,0.60033212]
[1752507384742,0.00194776,120070.0,120060.0,1.70221771]
[1752507384953,0.00194776,120070.0,120060.0,1.99940108]
[1752507385167,0.00194776,120070.0,120060.0,2.00773017]
[1752507385400,0.00194776,120070.0,120060.0,5.43280887]
[1752507385626,0.00194776,120070.0,120060.0,5.30220894]
[1752507385850,0.00194776,120070.0,120060.0,5.44113776]
[1752507386076,0.00194776,120070.0,120060.0,5.48391236]
[1752507386298,0.00194776,120070.0,120060.0,5.49942026]
[1752507386521,1.31544946,120100.0,120090.0,0.21594176]
[1752507386756,1.3,120100.0,120090.0,5.20509396]
[1752507387040,1.3,120100.0,120090.0,5.13282056]
[1752507387264,1.3,120100.0,120090.0,5.26342056]
[1752507387484,0.49603579,120100.0,120090.0,5.48071456]
[1752507387753,0.002,120110.0,120100.0,0.64544707]
[1752507388028,0.00205109,120110.0,120100.0,5.3500986]
[1752507388469,0.00205109,120110.0,120100.0,5.4806586]
[1752507389158,0.00048581,120110.0,120100.0,5.48062025]
[1752507389413,0.00048581,120110.0,120100.0,5.98091377]
[1752507389651,0.00048581,120110.0,120100.0,5.98291377]
[1752507390372,0.002,120130.0,120120.0,1.13116786]
[1752507390616,0.002,120130.0,120120.0,5.66568752]
[1752507390617,0.00205115,120130.0,120120.0,5.66568752]
[1752507391109,0.00205115,120130.0,120120.0,5.69061815]
[1752507391345,0.002,120150.0,120140.0,1.03795384]
[1752507391584,0.00205115,120150.0,120140.0,5.30891997]
[1752507391823,0.00205115,120150.0,120140.0,5.46299085]
[1752507392296,0.00205115,120150.0,120140.0,5.51163559]
[1752507392528,0.00205115,120150.0,120140.0,1.40413259]
[1752507392740,0.00205115,120150.0,120140.0,5.53518647]
[1752507392958,0.00205115,120150.0,120140.0,5.40466647]
[1752507393192,5.115e-05,120150.0,120140.0,5.95595999]
[1752507393431,0.1,120170.0,120160.0,0.64325145]
[1752507393653,0.1,120170.0,120160.0,5.37136613]
[1752507394090,0.1,120170.0,120160.0,5.42136613]
[1752507394308,0.08732068,120170.0,120160.0,5.55188613]
[1752507394826,0.08732068,120170.0,120160.0,5.55288613]
[1752507395046,0.08732068,120170.0,120160.0,5.53746596]
[1752507395271,0.08732068,120170.0,120160.0,5.42231176]
[1752507395272,0.07900637,120170.0,120160.0,5.42231176]
[1752507395489,0.03606897,120170.0,120160.0,5.55279176]
[1752507395708,0.02775466,120170.0,120160.0,5.55279176]
[1752507395929,0.02775466,120170.0,120160.0,5.55179176]
[1752507396161,0.02775466,120170.0,120160.0,4.83082366]
[1752507396384,0.02875466,120170.0,120160.0,5.17313527]
[1752507396609,0.02775466,120170.0,120160.0,5.61392499]
[1752507397082,0.02775466,120170.0,120160.0,5.74640499]
[1752507397314,0.02875466,120170.0,120160.0,4.99407747]
[1752507397542,0.02875466,120170.0,120160.0,1.89647176]
[1752507397768,0.02875466,120170.0,120160.0,0.37700291]
[1752507398004,0.02875466,120170.0,120160.0,0.37696612]
[1752507398520,0.02775466,120170.0,120160.0,0.37696612]
[1752507398745,0.02775466,120170.0,120160.0,3.14422664]
[1752507398993,0.02775466,120170.0,120160.0,3.12412764]
[1752507399247,0.02775466,120170.0,120160.0,4.97058046]
[1752507399501,0.02775466,120170.0,120160.0,5.48748618]
[1752507399733,0.02875466,120170.0,120160.0,5.53748618]
[1752507399995,0.02775466,120170.0,120160.0,5.40704618]
[1752507400218,0.02619833,120170.0,120160.0,5.40704618]
[1752507400438,0.0004,120180.0,120170.0,0.69323551]
[1752507400665,0.0004,120180.0,120170.0,5.39770815]
[1752507400899,0.0004,120180.0,120170.0,3.60771497]
[1752507401121,0.0004,120180.0,120170.0,3.87527797]
[1752507401348,0.0004,120180.0,120170.0,1.17354697]
[1752507401570,0.0004,120180.0,120170.0,1.23083297]
[1752507401792,0.0004,120180.0,120170.0,0.91586412]
[1752507402017,0.0004,120180.0,120170.0,1.04626412]
[1752507402262,0.0004,120180.0,120170.0,1.36152612]
[1752507402750,0.0004,120180.0,120170.0,1.36013697]
[1752507402984,0.0004,120180.0,120170.0,1.94722515]
[1752507403199,0.0004,120180.0,120170.0,5.34770815]
[1752507403427,0.0004,120180.0,120170.0,5.47810815]
[1752507403654,0.0004,120180.0,120170.0,5.39770815]
[1752507403879,0.0004,120180.0,120170.0,3.47616998]
[1752507404112,0.0004,120180.0,120170.0,3.50113376]
[1752507404341,0.0004,120180.0,120170.0,3.50445716]
[1752507405029,0.0004,120180.0,120170.0,3.37405716]
[1752507405250,0.0004,120180.0,120170.0,3.50445716]
[1752507405690,0.0004,120180.0,120170.0,3.52800804]
[1752507405936,0.0004,120180.0,120170.0,3.75214889]
[1752507406171,0.0004,120180.0,120170.0,3.83966889]
[1752507406449,0.0004,120180.0,120170.0,3.72859801]
[1752507406663,0.0004,120180.0,120170.0,3.85899801]
[1752507407320,0.0004,120180.0,120170.0,3.74430457]
[1752507407555,0.0004,120180.0,120170.0,3.87766457]
[1752507407785,0.0004,120180.0,120170.0,3.83882457]
[1752507407990,0.0004,120180.0,120170.0,3.96918457]
[1752507408251,0.0004,120180.0,120170.0,3.96618457]
[1752507408709,0.0004,120180.0,120170.0,3.96418457]
[1752507408936,0.0004,120180.0,120170.0,3.96918457]
[1752507409394,0.0004,120180.0,120170.0,3.88166457]
[1752507409894,0.0004,120180.0,120170.0,3.75130457]
[1752507410362,0.0004,120180.0,120170.0,3.88166457]
[1752507410364,0.0004,120180.0,120170.0,3.24901105]
[1752507410612,0.0004,120180.0,120170.0,3.58177105]
[1752507410872,0.0004,120180.0,120170.0,3.40141105]
[1752507411124,0.0004,120180.0,120170.0,3.53177105]
[1752507411388,0.0004,120180.0,120170.0,3.94370457]
[1752507411649,0.0004,120180.0,120170.0,1.41432457]
[1752507411906,0.0004,120180.0,120170.0,4.07602457]
[1752507413012,0.0004,120180.0,120170.0,4.0760882]
[1752507413552,0.0004,120180.0,120170.0,3.96931908]
[1752507414017,0.0004,120180.0,120170.0,4.09963908]
[1752507414443,0.0024,120190.0,120180.0,1.09621312]
[1752507414656,0.0024,120190.0,120180.0,3.80564173]
[1752507414883,0.0024,120190.0,120180.0,3.72532173]
[1752507415114,0.0024,120190.0,120180.0,3.85564173]
[1752507415358,0.0024,120190.0,120180.0,3.72532173]
[1752507415578,0.0024,120190.0,120180.0,3.85564173]
[1752507415788,0.00291157,120190.0,120180.0,3.94316173]
[1752507416007,0.00291157,120190.0,120180.0,3.99310173]
[1752507416222,0.00291157,120190.0,120180.0,3.86278173]
[1752507416457,0.00291157,120190.0,120180.0,3.99310173]
[1752507416889,0.00291157,120190.0,120180.0,3.86278173]
[1752507417111,0.00291157,120190.0,120180.0,3.99310173]
[1752507417547,0.00291157,120190.0,120180.0,3.86278173]
[1752507417774,0.00291157,120190.0,120180.0,3.99310173]
[1752507418030,0.00291157,120190.0,120180.0,3.86278173]
[1752507418245,0.00291157,120190.0,120180.0,3.64520821]
[1752507418460,0.00291157,120190.0,120180.0,3.69520821]
[1752507418673,0.00291157,120190.0,120180.0,4.19546173]
[1752507418894,0.00291157,120190.0,120180.0,4.14546173]
[1752507419126,0.00291157,120190.0,120180.0,3.51488821]
[1752507419387,0.00291157,120190.0,120180.0,4.14746173]
[1752507419809,0.00291157,120190.0,120180.0,1.66508173]
[1752507420027,0.00291157,120190.0,120180.0,4.19746173]
[1752507420241,0.00291157,120190.0,120180.0,4.14746173]
[1752507420473,0.00291157,120190.0,120180.0,4.19746173]
[1752507420918,0.00291157,120190.0,120180.0,4.17239573]
[1752507421138,0.00291157,120190.0,120180.0,4.15701423]
[1752507421366,0.00291157,120190.0,120180.0,4.17250134]
[1752507421585,0.00291157,120190.0,120180.0,4.22250134]
[1752507422157,0.00291157,120190.0,120180.0,3.67220782]
[1752507422367,0.00291157,120190.0,120180.0,4.22250134]
[1752507423218,0.00291157,120190.0,120180.0,4.09222134]
[1752507423462,0.00291157,120190.0,120180.0,3.53360753]
[1752507423730,0.00291157,120190.0,120180.0,4.10054184]
[1752507423933,0.00291157,120190.0,120180.0,1.69844184]
[1752507424361,0.06571112,120220.0,120200.0,0.35454085]
[1752507424565,0.0307,120210.0,120200.0,0.37002796]
[1752507424768,0.0307,120210.0,120200.0,3.11403507]
[1752507425873,0.0307,120210.0,120200.0,0.25245022]
[1752507425874,0.53099352,120210.0,120200.0,0.25245022]
[1752507426086,0.53099352,120210.0,120200.0,0.23696311]
[1752507426295,0.53099352,120210.0,120200.0,0.42134711]
[1752507426710,0.70568724,120210.0,120200.0,0.55158711]
[1752507426834,0.53931181,120210.0,120200.0,0.55158711]
[1752507427046,0.53931174,120210.0,120200.0,0.42134711]
[1752507427255,0.7452058,120210.0,120200.0,0.13024]
[1752507427465,0.0645,120200.0,120190.0,0.5]
[1752507427680,0.56479352,120200.0,120190.0,0.68301911]
[1752507428682,0.0645,120200.0,120190.0,0.68301911]
[1752507428902,0.07281891,120200.0,120190.0,0.68501911]
[1752507429331,0.57311243,120200.0,120190.0,0.68501911]
[1752507429554,0.57311243,120200.0,120190.0,0.55477911]
[1752507429764,0.57311243,120200.0,120190.0,0.68501911]
[1752507429977,0.56479352,120200.0,120190.0,0.68501911]
[1752507430196,0.73950185,120200.0,120190.0,0.42334711]
[1752507430410,0.58143162,120200.0,120190.0,0.54393911]
[1752507430644,0.58975087,120200.0,120190.0,0.54393911]
[1752507430899,0.58143162,120200.0,120190.0,0.67417911]
[1752507431103,0.58975087,120200.0,120190.0,0.67317911]
[1752507431306,0.5731125,120200.0,120190.0,0.54293911]
[1752507431521,0.58975087,120200.0,120190.0,0.67317911]
[1752507431978,0.73950178,120200.0,120190.0,0.001]
[1752507432225,0.74782145,120200.0,120190.0,0.63124]
[1752507432440,0.78950226,120200.0,120190.0,0.13124]
[1752507432660,0.78950226,120200.0,120190.0,0.63124]
[1752507433648,0.78118287,120200.0,120190.0,0.501]
[1752507433880,0.78118287,120200.0,120180.0,0.00015321]
[1752507433881,0.28732321,120190.0,120180.0,0.00015321]
[1752507434093,0.78761673,120190.0,120180.0,0.00015321]
[1752507434538,0.28732321,120190.0,120180.0,0.00015321]
[1752507434770,0.78761673,120190.0,120180.0,0.00015321]
[1752507435275,0.74593668,120190.0,120180.0,0.00015321]
[1752507435499,0.74593668,120190.0,120180.0,0.13039321]
[1752507435721,0.78761673,120190.0,120180.0,0.13039321]
[1752507436377,0.78761673,120190.0,120180.0,0.00015321]
[1752507436813,0.78761673,120190.0,120180.0,0.13039321]
[1752507437035,0.78761673,120190.0,120180.0,0.00015321]
[1752507437244,0.13666392,120170.0,120160.0,0.002]
[1752507437490,0.62031444,120170.0,120160.0,0.50251157]
[1752507437707,0.0617,120170.0,120160.0,0.62422668]
[1752507437926,0.74506699,120170.0,120160.0,0.33992257]
[1752507438146,0.79506699,120170.0,120160.0,0.00251157]
[1752507438384,0.8764141,120170.0,120160.0,0.00251157]
[1752507438644,0.75522006,120150.0,120140.0,0.1]
[1752507438897,0.73691933,120150.0,120140.0,0.10012738]
[1752507439102,1.30979083,120150.0,120140.0,0.23036738]
[1752507439326,0.80949731,120150.0,120140.0,0.23036738]
[1752507439548,1.30979083,120150.0,120140.0,0.10012738]
[1752507439765,1.31179083,120150.0,120140.0,0.23036738]
[1752507439985,1.31179083,120150.0,120140.0,0.10012738]
[1752507440651,0.81149731,120150.0,120140.0,0.10016738]
[1752507440876,0.6550168,120150.0,120140.0,0.10016738]
[1752507441101,0.81947539,120150.0,120140.0,0.10016738]
[1752507441531,1.31144647,120150.0,120140.0,0.03566738]
[1752507441749,1.39479358,120150.0,120140.0,0.03566738]
[1752507442422,1.39279358,120150.0,120140.0,0.03566738]
[1752507442640,1.65431358,120150.0,120140.0,0.03566738]
[1752507443073,1.65331358,120150.0,120140.0,0.03566738]
[1752507443295,1.39279358,120150.0,120140.0,0.03566738]
[1752507443533,1.39379358,120150.0,120140.0,0.03566738]
[1752507444154,1.39279358,120150.0,120140.0,0.03566738]
[1752507444369,1.39979358,120150.0,120140.0,0.03566738]
[1752507446728,1.42520147,120150.0,120140.0,0.03566738]
[1752507448907,1.45172593,120150.0,120140.0,0.03566738]
[1752507449410,1.42520147,120150.0,120140.0,0.03566738]
[1752507454500,1.42520147,120150.0,120140.0,0.02249926]
[1752507454715,1.77974232,120150.0,120140.0,0.02249926]
[1752507455999,1.77941106,120150.0,120140.0,0.02249926]
[1752507456757,1.76487021,120150.0,120140.0,0.02249926]
[1752507458136,1.77941106,120150.0,120140.0,0.02249926]
[1752507458358,1.83128086,120150.0,120140.0,0.02249926]
[1752507458831,2.23128086,120150.0,120140.0,0.02249926]
[1752507459062,2.17941106,120150.0,120140.0,0.02249926]
[1752507461762,2.43993106,120150.0,120140.0,0.02249926]
[1752507462010,2.03993106,120150.0,120140.0,0.02249926]
[1752507462231,0.65017528,120130.0,120120.0,0.002]
[1752507462459,2.07394677,120130.0,120120.0,0.00205115]
[1752507462901,2.01759443,120130.0,120120.0,0.00205115]
[1752507463112,2.09759443,120130.0,120120.0,0.00205115]
[1752507463329,1.05750154,120130.0,120120.0,0.00205115]
[1752507463545,1.55779506,120130.0,120120.0,0.00405115]
[1752507463772,1.55779506,120130.0,120120.0,0.00205115]
[1752507464042,1.55779506,120130.0,120120.0,0.00305115]
[1752507465122,1.55979506,120130.0,120120.0,0.00205115]
[1752507465576,2.08990052,120130.0,120120.0,0.00205115]
[1752507466961,1.589607,120130.0,120120.0,0.00195115]
[1752507467416,1.57633591,120130.0,120120.0,0.00195115]
[1752507469120,1.57633591,120130.0,120120.0,0.00084073]
[1752507470520,2.07662943,120130.0,120120.0,0.00084073]
[1752507470708,1.57633591,120130.0,120120.0,0.00084073]
[1752507471390,1.57633591,120130.0,120120.0,0.00088073]
[1752507472312,1.57629591,120130.0,120120.0,0.00088073]
[1752507474204,1.15731973,120130.0,120120.0,0.00088073]
[1752507474428,1.57629591,120130.0,120120.0,0.00088073]
[1752507477797,2.07658943,120130.0,120120.0,0.00088073]
[1752507478826,1.57429591,120130.0,120120.0,0.00088073]
[1752507479272,1.57929591,120130.0,120120.0,0.00088073]
[1752507479927,1.96275506,120130.0,120120.0,0.00088073]
[1752507480165,1.56575506,120130.0,120120.0,0.00088073]
[1752507480407,1.60583398,120130.0,120120.0,0.00088073]
[1752507480627,1.56575506,120130.0,120120.0,0.00088073]
[1752507481511,0.26759524,120130.0,120120.0,0.00088073]
[1752507481733,0.9110993,120130.0,120120.0,0.00088073]
[1752507481954,0.90277534,120130.0,120120.0,0.00088073]
[1752507482175,0.82142823,120130.0,120120.0,0.00088073]
[1752507482596,0.81144535,120130.0,120120.0,0.01642548]
[1752507482809,0.81976952,120130.0,120120.0,0.01642548]
[1752507483285,0.13634129,120130.0,120120.0,0.07782548]
[1752507483503,0.058,120130.0,120120.0,0.07782548]
[1752507483703,0.058,120130.0,120120.0,0.06228073]
[1752507483949,0.55829352,120130.0,120120.0,0.07783125]
[1752507484204,0.55529352,120130.0,120120.0,0.07783125]
[1752507484640,0.056,120130.0,120120.0,0.07783125]
[1752507484961,0.051,120130.0,120120.0,0.07783125]
[1752507485154,0.001,120130.0,120120.0,0.07783125]
[1752507485360,0.001,120130.0,120120.0,0.66060669]
[1752507485586,0.60660183,120150.0,120130.0,0.0637]
[1752507485805,0.60660183,120150.0,120130.0,0.07925052]
[1752507485806,0.50861651,120140.0,120130.0,0.07925052]
[1752507486009,0.51693957,120140.0,120130.0,0.07925052]
[1752507486237,0.52526277,120140.0,120130.0,0.07925052]
[1752507487165,0.72508951,120140.0,120120.0,0.50088073]
[1752507487374,0.75007636,120130.0,120120.0,0.00088073]
[1752507487579,0.73342837,120130.0,120120.0,0.00088073]
[1752507487994,0.56694179,120130.0,120120.0,0.00088073]
[1752507488205,0.56694138,120130.0,120120.0,0.00088073]
[1752507488622,0.55029352,120130.0,120120.0,0.00088073]
[1752507489035,0.55861728,120130.0,120120.0,0.00088073]
[1752507489235,0.56694117,120130.0,120120.0,0.00088073]
[1752507489445,0.55861735,120130.0,120120.0,0.00088073]
[1752507489677,0.73342768,120130.0,120120.0,0.00088073]
[1752507489859,0.55861735,120130.0,120120.0,0.00088073]
[1752507490065,0.56694131,120130.0,120120.0,0.00088073]
[1752507490275,0.74175171,120130.0,120120.0,0.00088073]
[1752507490490,0.56694131,120130.0,120120.0,0.00088073]
[1752507490757,0.55029352,120130.0,120120.0,0.00088073]
[1752507490971,0.55029352,120130.0,120120.0,0.03398073]
[1752507491186,0.55861728,120130.0,120120.0,0.03398073]
[1752507491415,0.56694104,120130.0,120120.0,0.03398073]
[1752507492101,0.75007547,120130.0,120120.0,0.00088073]
[1752507492611,0.57526493,120130.0,120120.0,0.00088073]
[1752507492832,0.57360697,120130.0,120120.0,0.00088073]
[1752507493280,0.56528301,120130.0,120120.0,0.00088073]
[1752507494122,0.57360697,120130.0,120120.0,0.00088073]
[1752507494359,0.57360697,120130.0,120120.0,0.01641424]
[1752507494835,0.57360711,120130.0,120120.0,0.01641424]
[1752507495079,0.56528301,120130.0,120120.0,0.01641424]
[1752507495298,0.57360704,120130.0,120120.0,0.01641424]
[1752507495500,0.58193121,120130.0,120120.0,0.01641424]
[1752507495965,0.22315258,120130.0,120120.0,0.01641424]
[1752507496174,0.7872461,120130.0,120120.0,0.01641424]
[1752507496391,0.77892207,120130.0,120120.0,0.14653424]
[1752507497617,0.77872207,120130.0,120120.0,0.01641424]
[1752507497828,0.74732207,120130.0,120120.0,0.01641424]
[1752507498270,0.76397034,120130.0,120120.0,0.01641424]
[1752507500136,0.75564638,120130.0,120120.0,0.01641424]
[1752507500578,0.78874638,120130.0,120120.0,0.01641424]
[1752507501650,0.78874638,120130.0,120120.0,0.01642109]
[1752507502154,0.78874638,120130.0,120120.0,0.01642114]
[1752507503869,0.78854638,120130.0,120120.0,0.01642114]
[1752507504087,0.78854638,120130.0,120120.0,0.14650114]
[1752507504275,0.78854638,120130.0,120120.0,0.01642114]
[1752507504532,1.04850603,120130.0,120120.0,0.01642114]
[1752507504746,1.04850638,120130.0,120120.0,0.01642114]
[1752507504963,1.04850638,120130.0,120120.0,0.01622114]
[1752507505177,0.78002221,120130.0,120120.0,0.01622114]
[1752507505407,0.78002221,120130.0,120120.0,0.01602114]
[1752507505811,0.77982221,120130.0,120120.0,0.01602114]
[1752507506489,0.77962221,120130.0,120120.0,0.01603165]
[1752507506930,1.03978221,120130.0,120120.0,0.01603165]
[1752507507154,1.03978221,120130.0,120120.0,0.01583165]
[1752507507603,1.03978221,120130.0,120120.0,0.01563165]
[1752507508037,1.03958221,120130.0,120120.0,0.01563165]
[1752507508458,1.03958221,120130.0,120120.0,0.01543165]
[1752507509788,1.04269221,120130.0,120120.0,0.01543165]
[1752507510193,1.04483221,120130.0,120120.0,0.01543165]
[1752507510635,0.18314982,120120.0,120110.0,0.13331]
[1752507510847,0.67346035,120120.0,120110.0,0.13547115]
[1752507511004,0.53359284,120120.0,120110.0,0.13547115]
[1752507511215,0.51694305,120120.0,120110.0,0.13547115]
[1752507511417,0.52526791,120120.0,120110.0,0.13547115]
[1752507511627,0.53359284,120120.0,120110.0,0.13547115]
[1752507511824,0.700093,120120.0,120110.0,0.13747115]
[1752507512027,0.69176827,120120.0,120110.0,0.13747115]
[1752507512229,0.75630827,120120.0,120110.0,0.13743115]
[1752507512447,0.78680155,120120.0,120110.0,0.00416115]
[1752507512646,0.78991155,120120.0,120110.0,0.00205115]
[1752507512847,0.78971155,120120.0,120110.0,0.00205115]
[1752507513249,1.04979155,120120.0,120110.0,0.00205115]
[1752507513462,1.13113866,120120.0,120110.0,0.00185115]
[1752507513841,1.13113866,120120.0,120110.0,0.00085115]
[1752507513842,1.98597303,120120.0,120110.0,0.00085115]
[1752507514340,1.98597303,120120.0,120100.0,0.00204]
[1752507514341,2.38597303,120120.0,120100.0,0.00204]
[1752507514613,1.94140636,120110.0,120100.0,0.00204]
[1752507514875,1.97976266,120110.0,120100.0,0.00204]
[1752507515101,2.00473366,120110.0,120100.0,0.00204]
[1752507515335,2.486051,120110.0,120100.0,0.00204]
[1752507515581,2.40473366,120110.0,120100.0,0.00204]
[1752507515846,0.92219577,120110.0,120100.0,0.00204]
[1752507516066,0.03881808,120090.0,120080.0,0.00152105]
[1752507516356,0.65820598,120110.0,120100.0,0.00211]
[1752507516357,0.03881808,120110.0,120100.0,0.00211]
[1752507516558,0.55836387,120110.0,120100.0,0.00534]
[1752507516759,0.5391116,120110.0,120100.0,0.00534]
[1752507517179,0.50029352,120110.0,120100.0,0.00534]
[1752507517411,0.26108,120120.0,120100.0,0.19668]
[1752507517412,0.03881808,120120.0,120100.0,0.19668]
[1752507517590,0.03881808,120120.0,120110.0,0.03563]
[1752507517834,0.5391116,120120.0,120110.0,0.03774]
[1752507519053,0.03881808,120120.0,120110.0,0.03774]
[1752507519252,0.04141964,120120.0,120110.0,0.03774]
[1752507519669,0.54171316,120120.0,120110.0,0.03774]
[1752507519884,0.5391116,120120.0,120110.0,0.03774]
[1752507520449,0.5389116,120120.0,120110.0,0.05328628]
[1752507520653,0.5389116,120120.0,120110.0,0.02088628]
[1752507520868,0.52892888,120120.0,120110.0,0.02088628]
[1752507521080,0.52892888,120120.0,120110.0,0.15092628]
[1752507521301,0.52892888,120120.0,120110.0,0.15088628]
[1752507522474,0.53092888,120130.0,120110.0,0.18351504]
[1752507522707,0.56422446,120130.0,120120.0,0.00323]
[1752507522920,0.55590029,120130.0,120120.0,0.02088628]
[1752507523149,0.55590022,120130.0,120120.0,0.02088628]
[1752507523354,0.54757633,120130.0,120120.0,0.02088628]
[1752507523555,0.53092888,120130.0,120120.0,0.02088628]
[1752507523971,0.5475764,120130.0,120120.0,0.02088628]
[1752507524402,0.55590029,120130.0,120120.0,0.02088628]
[1752507525054,0.5475764,120130.0,120120.0,0.02088628]
[1752507525264,0.53092888,120130.0,120120.0,0.02088628]
[1752507525468,0.03063536,120130.0,120120.0,0.02088628]
[1752507525683,0.03063536,120130.0,120120.0,0.15088628]
[1752507525903,0.03363536,120130.0,120120.0,0.15088628]
[1752507526348,0.04195905,120130.0,120120.0,0.15088628]
[1752507526549,0.04195905,120130.0,120120.0,0.02088628]
[1752507526758,0.07218101,120130.0,120120.0,0.01534628]
[1752507526958,0.56415036,120130.0,120120.0,0.14534628]
[1752507527163,0.03363536,120130.0,120120.0,0.05328628]
[1752507527386,0.005,120130.0,120120.0,0.18328628]
[1752507528035,0.005,120130.0,120120.0,0.21408628]
[1752507528372,0.003,120130.0,120120.0,0.19874]
[1752507528578,0.04528197,120140.0,120120.0,0.28008711]
[1752507528802,0.0536051,120140.0,120130.0,0.00323]
[1752507529009,0.55389869,120140.0,120130.0,0.00534]
[1752507529215,0.52892888,120140.0,120130.0,0.00534]
[1752507529330,0.02863536,120140.0,120130.0,0.13534]
[1752507529534,0.0615355,120150.0,120130.0,0.1968]
[1752507529744,0.04504415,120150.0,120140.0,0.00323]
[1752507529963,0.04504415,120150.0,120140.0,0.03926746]
[1752507529964,0.01640879,120150.0,120140.0,0.03926746]
[1752507530208,0.01640879,120150.0,120140.0,0.16922746]
[1752507530409,0.01640879,120150.0,120140.0,0.24914711]
[1752507530561,0.01640879,120150.0,120140.0,0.28014711]
[1752507530762,0.00642933,120150.0,120140.0,0.28014711]
[1752507531035,0.00215346,120150.0,120140.0,0.15018711]
[1752507531188,0.00215346,120150.0,120140.0,0.24914711]
[1752507531392,0.50769698,120150.0,120140.0,0.001]
[1752507531595,0.50769698,120150.0,120140.0,0.13096]
[1752507531596,0.52434193,120150.0,120140.0,0.13096]
[1752507531797,0.53266458,120150.0,120140.0,0.13096]
[1752507531998,0.52741458,120150.0,120140.0,0.1363]
[1752507532198,0.70433596,120150.0,120140.0,0.1373]
[1752507532397,0.51076928,120150.0,120140.0,0.1373]
[1752507532656,0.51909165,120150.0,120140.0,0.1373]
[1752507533373,0.52741416,120150.0,120140.0,0.1373]
[1752507533777,0.53573681,120150.0,120140.0,0.1373]
[1752507534432,0.54030208,120150.0,120140.0,0.1373]
[1752507535522,0.54244208,120150.0,120140.0,0.00734]
[1752507535726,0.79592449,120150.0,120140.0,0.13192]
[1752507536157,0.78760177,120150.0,120140.0,0.13192]
[1752507536383,1.28789529,120150.0,120140.0,0.002]
[1752507537696,1.28789529,120150.0,120140.0,0.001]
[1752507537697,1.7092424,120150.0,120140.0,0.001]
[1752507537916,0.12392183,120150.0,120140.0,0.00634]
[1752507538139,0.71713856,120150.0,120140.0,0.00634]
[1752507538365,0.67371507,120150.0,120140.0,0.00634]
[1752507538584,0.66539256,120150.0,120140.0,0.00634]
[1752507538815,0.673715,120150.0,120140.0,0.02185429]
[1752507539061,0.17342148,120150.0,120140.0,0.02185429]
[1752507539280,0.67371493,120150.0,120140.0,0.02185341]
[1752507539497,0.68203751,120150.0,120140.0,0.02185341]
[1752507539717,0.68203751,120150.0,120140.0,0.01651341]
[1752507539718,1.37260788,120150.0,120140.0,0.01651341]
[1752507539933,1.48146433,120150.0,120140.0,0.01651341]
[1752507540152,1.48146433,120150.0,120140.0,0.01651347]
[1752507540570,1.48146433,120150.0,120140.0,0.01551347]
[1752507540986,1.48246433,120150.0,120140.0,0.01551347]
[1752507541200,1.47719433,120150.0,120140.0,0.02051347]
[1752507541406,0.97690081,120150.0,120140.0,0.02051347]
[1752507541613,0.97898081,120150.0,120140.0,0.01551347]
[1752507542034,0.98211081,120150.0,120140.0,0.01551347]
[1752507542249,0.97898081,120150.0,120140.0,0.02051347]
[1752507542476,0.97898081,120150.0,120140.0,0.01750347]
[1752507542682,0.98211081,120150.0,120140.0,0.01551347]
[1752507543327,1.48240433,120150.0,120140.0,0.01551347]
[1752507544690,1.83694518,120150.0,120140.0,0.01551347]
[1752507545135,1.83694518,120150.0,120110.0,0.00301]
[1752507545136,0.0249737,120120.0,120110.0,0.00301]
[1752507545357,0.54860166,120120.0,120110.0,0.01553025]
[1752507545580,0.6172249,120120.0,120110.0,0.01553025]